[Event "CCT Airthings Masters Play-In 2023"]
[Site "Online"]
[Date "2023.02.03"]
[Round "3"]
[White "MikaelyanArman"]
[Black "Baku_Boulevard"]
[Result "0-1"]
[ECO "B07"]
[WhiteElo "2435"]
[BlackElo "2666"]
[Annotator "TA"]
[PlyCount "72"]
[EventDate "2023.02.03"]
[EventType "swiss"]
[EventCountry "NET"]
[SourceTitle "playchess.com"]
[Source "ChessBase"]
[SourceQuality "1"]
[TimeControl "600+2"]

{[%evp 14,72,11,13,14,8,24,10,33,0,15,-23,12,-11,33,-16,0,-104,80,76,91,99,76,9,79,72,70,56,49,28,31,15,94,88,128,115,173,92,277,250,237,276,262,260,237,100,113,98,88,-105,0,0,0,0,0,-355,-23,-659,-632,-766,-762]} 1. d4 {[%emt 0:00:05]} d6 {[%emt 0:00:05]} 2. e4 {[%emt 0:00:12]} Nf6 {[%emt 0:00:03]} 3. Nc3 {[%emt 0:00:01]} e5 {[%emt 0:00:01]} 4. Nf3 {[%emt 0:00:11]} exd4 {[%emt 0:00:01]} 5. Nxd4 {[%emt 0:00:01]} g6 {[%emt 0:00:01]} 6. g3 {[%emt 0:00:24]} Bg7 {[%emt 0:00:01]} 7. Bg2 {[%emt 0:00:01]} O-O {[%emt 0:00:01]} 8. O-O {[%emt 0:00:01]} Re8 $1 {[%emt 0:00:00] 8...Re8 is better than 8...Nc6. B07: Pirc Defence: Miscellaneous Systems.} 9. Re1 {[%emt 0:00:22]} a6 $5 {[%emt 0:00:02][%mdl 4] Leaves trodden paths.} 10. h3 {[%emt 0:00:31]} Nbd7 {[%emt 0:00:02] The position is equal.} 11. g4 {[%emt 0:00:19] [#]} Rb8 $146 {[%emt 0:00:05]} ({Predecessor:} 11... d5 12. Nde2 Nxe4 13. Nxd5 c6 14. Ndc3 Nxc3 15. Nxc3 Rxe1+ 16. Qxe1 Nf6 17. Bg5 h6 18. Rd1 Qf8 19. Bf4 Be6 20. Bd6 Qe8 21. Be5 {½-½ Munoz Pantoja,M (2503)-Moskalenko,V (2509) Catalunya-chT GpA final 2018 (1.2)}) 12. Bf4 {[%emt 0:00:08]} Ne5 {[%emt 0:00:03]} (12... h5 $5 {[%cal Rh5g4]}) 13. Bg3 {[%emt 0:00:21]} c5 {[%emt 0:00:03]} (13... h5 $5 {[%cal Rh5g4]}) 14. Nb3 {[%emt 0:00:18]} (14. Nf3 $14) 14... h5 {[%emt 0:00:13][%cal Rh5g4]} 15. f4 {[%emt 0:02:01]} (15. Bxe5 $11 Rxe5 16. f4) 15... Nc4 $2 {[%emt 0:00:04]} (15... hxg4 $1 $17 {[%cal Of6h5] and life is bright. White must now prevent ...Nh5!} 16. Bh4 (16. fxe5 Nh5 $17) 16... Nc6) 16. e5 $16 {[%emt 0:00:05]} Nxg4 {[%emt 0:00:38]} 17. hxg4 {[%emt 0:00:05]} Bxg4 {[%emt 0:00:01]} 18. Bf3 {[%emt 0:00:54]} (18. Qd5 $16 Be6 19. Qf3) 18... Bxf3 {[%emt 0:00:10]} (18... h4 $11 {keeps the balance.} 19. Bf2 (19. Bxg4 hxg3 20. Qf3 Qh4 $11) 19... Nxb2) 19. Qxf3 {[%emt 0:00:00] Rad1 would be deadly.} dxe5 {[%emt 0:00:00]} 20. Rad1 {[%emt 0:00:08]} Qc8 {[%emt 0:00:10]} 21. fxe5 {[%emt 0:00:15]} (21. Rf1 {keeps more tension.} Nxb2 22. Rd5 Qh3 23. fxe5 h4 24. Bh2) 21... Nxe5 {[%emt 0:00:10]} 22. Qg2 {[%emt 0:00:41]} Qf5 {[%emt 0:00:19]} (22... Qg4 $11 23. Rf1 (23. Nxc5 $2 {perishes.} Nf3+ {[%mdl 64] Discovered Attack, Double Attack} 24. Kh1 Nxe1 $19) 23... Rbd8) 23. Rf1 {[%emt 0:00:08]} (23. Nxc5 $2 {is the wrong capture.} Nf3+ 24. Kh1 Nxe1 25. Rxe1 Rxe1+ 26. Bxe1 Qxc5 $19) 23... Qc8 {[%emt 0:01:00]} 24. Nd5 {[%emt 0:00:06] Hoping for Nd2.} c4 {[%emt 0:00:25]} (24... Qc6 $16 25. c4 (25. Qf2 b6 $16) 25... Re6) 25. Nd4 {[%emt 0:00:02]} (25. Nd2 $1 $18 {[%cal Rd2e4] Ne4 is the strong threat.} Qc6 26. Nf3) 25... Qc5 $2 {[%emt 0:00:08]} (25... c3 $16) 26. Kh1 $18 {[%emt 0:01:09][%cal Od4f5]} Rbd8 {[%emt 0:00:05] [#]} 27. Nf5 $1 {[%emt 0:00:05][%mdl 512] A dynamic duo of knights.} Ng4 {[%emt 0:01:09]} (27... gxf5 28. Bxe5 Qf8 29. Rg1 Rxd5 30. Bxg7 Re4 31. Bxf8+ Kxf8 32. Qg7+ Ke7 33. Qg5+ f6 34. Qg7+ Kd6 35. Qxf6+ Kc7 36. Rxd5) 28. Nxg7 {[%emt 0:00:23]} Kxg7 {[%emt 0:00:05]} 29. Bh4 {[%emt 0:00:41]} (29. Qf3 $18 {is the precise move to win.} Qf8 30. Bh4) 29... Rd6 $16 {[%emt 0:00:24]} 30. Qf3 {[%emt 0:00:21]} f5 {[%emt 0:00:09] [#]} 31. Qc3+ $2 {[%emt 0:00:35] [#]} (31. Bg3 $1 $16 {[%cal Od5c7] Threatens to win with Nc7!} Rd7 32. Nf4 Rxd1 33. Rxd1) 31... Kf7 {[%emt 0:00:04] Chess con chili.} (31... Kh6 $1 $17 32. Qf3 Re5) 32. Qf3 $11 {[%emt 0:00:09]} Qc6 $40 {[%emt 0:00:09][%mdl 128] Black mounts an attack.} 33. Bg3 {[%emt 0:00:03] Dodges Re5} Rd7 {[%emt 0:00:11] Strongly threatening ...Red8.} 34. Rd4 $2 {[%emt 0:00:11][%mdl 8192]} (34. b3 $11) 34... Nf6 $2 {[%emt 0:00:15]} ({Black should play} 34... Ne3 $19 35. Nxe3 Qxf3+ 36. Rxf3 Rxd4) 35. Rfd1 $2 {[%emt 0:00:05][%mdl 8192]} (35. Nxf6 $11 Qxf3+ 36. Rxf3 Rxd4 37. Nxe8 Kxe8 38. Rf2) 35... Red8 {[%emt 0:00:04]} 36. Bh4 {[%emt 0:00:04]} Rxd5 {[%emt 0:00:02] Never resign too early! An entertaining game by Baku_Boulevard.   Weighted Error Value: White=0.58/Black=0.52} 0-1

[Event "CCT Airthings Masters Play-In 2023"]
[Site "Online"]
[Date "2023.02.03"]
[Round "3"]
[White "penguingm1"]
[Black "Bigfish"]
[Result "0-1"]
[ECO "E35"]
[WhiteElo "2430"]
[BlackElo "2658"]
[Annotator "TA"]
[PlyCount "48"]
[EventDate "2023.02.03"]
[EventType "swiss"]
[EventCountry "NET"]
[SourceTitle "playchess.com"]
[Source "ChessBase"]
[SourceQuality "1"]
[TimeControl "600+2"]

{[%evp 12,48,18,17,41,33,42,50,50,0,0,0,0,9,0,-10,35,-24,-22,-108,-66,-108,-16,-147,-114,-158,-161,-164,-160,-156,-157,-511,-504,-1155,-1143,-1118,-954,-3149,-3158]} 1. d4 {[%emt 0:00:03]} Nf6 {[%emt 0:00:24]} 2. c4 {[%emt 0:00:06]} e6 {[%emt 0:00:03]} 3. Nc3 {[%emt 0:00:01]} Bb4 {[%emt 0:00:04]} 4. Qc2 {[%emt 0:00:01]} d5 {[%emt 0:00:06]} 5. cxd5 {[%emt 0:00:01]} exd5 {[%emt 0:00:04]} 6. Bg5 {[%emt 0:00:01]} h6 {[%emt 0:00:05]} 7. Bh4 {[%emt 0:00:01] The main line 7.Bh4 scores better than 7.Bxf6.} Qe7 $5 {[%emt 0:00:03][%mdl 4] An interesting side line. E35: Nimzo-Indian: Classical: 4...d5 5 cxd5 exd5.} 8. e3 {[%emt 0:00:18]} g5 {[%emt 0:00:08]} 9. Bg3 {[%emt 0:00:01]} h5 {[%emt 0:00:03] White is slightly better.} 10. h3 {[%emt 0:00:42]} ({White should play} 10. Be5 $14) 10... Ne4 $11 {[%emt 0:00:15]} 11. Bh2 {[%emt 0:00:02]} Nc6 {[%emt 0:00:24][%cal Oc6d4] Strongly threatening ...Nxd4!} 12. Bb5 {[%emt 0:02:06]} Bf5 {[%emt 0:00:05] [#] Hoping for ...Kf8.} 13. Qb3 $146 {[%emt 0:00:40]} ({Predecessor:} 13. Qc1 Rh6 14. Nge2 O-O-O 15. O-O g4 16. h4 Qxh4 17. Bf4 Rg6 18. Ng3 Nxg3 19. fxg3 {1-0 Mamedyarov,S (2747)-Carlsen,M (2856) Aimchess Rapid Prelim 2022 (1)}) 13... O-O-O {[%emt 0:00:55][%cal Oc6d4] White must now prevent ...Nxd4!} 14. Nge2 {[%emt 0:01:18]} ({White should try} 14. Bxc6 $14 bxc6 15. Nf3) 14... Rh6 {[%emt 0:00:42]} 15. a3 {[%emt 0:00:15]} (15. Bd3 $11 {remains equal.}) 15... Bxc3+ $17 {[%emt 0:00:57]} 16. bxc3 {[%emt 0:00:08]} Re6 {[%emt 0:01:25]} (16... Rf6 $17 {[%cal Oe4f2] ...Nxf2! would be deadly.} 17. Rf1 Bg6) 17. Ra2 {[%emt 0:00:40]} (17. c4 $11 {keeps the balance.} dxc4 18. Bxc4) 17... a6 {[%emt 0:00:09]} 18. Bxc6 {[%emt 0:00:34]} Rxc6 {[%emt 0:00:03]} 19. Rb2 {[%emt 0:00:06] White is weak on the light squares} b6 {[%emt 0:00:37] Active counter play!} (19... Rb6 20. Qa2 $17) 20. O-O {[%emt 0:03:21]} g4 {[%emt 0:00:31]} 21. hxg4 {[%emt 0:00:00] This costs White the game.} (21. Qb4 $17 Qxb4 22. cxb4) 21... hxg4 $19 {[%emt 0:00:05] And now ...Rh6 would win. Black is clearly winning.} 22. Bf4 {[%emt 0:00:01] Repels Rh6} (22. Ng3 $142 Qe6 23. Rc1) 22... Qh4 {[%emt 0:00:13] ( -> ...Rh8)} 23. Ng3 {[%emt 0:00:19] [#]} Rh8 $1 {[%emt 0:00:20][%csl Gh8][%cal Rh4h2]} 24. Re1 {[%emt 0:00:02] [#]} (24. Rc1 Qh2+) 24... Nxc3 $1 {[%emt 0:00:17] Weighted Error Value: White=0.96/Black=0.13 (very precise)} 0-1

[Event "CCT Airthings Masters Play-In 2023"]
[Site "Online"]
[Date "2023.02.03"]
[Round "3"]
[White "sergoy"]
[Black "vladislavkovalev"]
[Result "0-1"]
[ECO "E49"]
[WhiteElo "2429"]
[BlackElo "2606"]
[Annotator "TA"]
[PlyCount "118"]
[EventDate "2023.02.03"]
[EventType "swiss"]
[EventCountry "NET"]
[SourceTitle "playchess.com"]
[Source "ChessBase"]
[SourceQuality "1"]
[TimeControl "600+2"]

{[%evp 13,118,10,18,0,24,14,13,18,28,25,24,10,55,39,42,41,50,36,48,31,47,42,47,39,45,33,43,43,45,41,44,49,52,50,40,41,58,-242,-233,-218,-227,-207,-222,-1070,-1082,-1033,-1038,-1038,-1029,-951,-931,-860,-798,-684,-647,-2157,-1535,-925,-1439,-29978,-29979,-29978,-7870,-7870,-7862,-7429,-7461,-7280,-1827,-1452,-831,-7317,-6912,-2437,0,-6912,-6920,-5481,-5189,-29963,-29965,-5912,-5502,-5206,-4902,-29974,-29974,-29974,-29975,-29982,-29983,-29984,-29985,-29985,-29985,-29984,-29985,-29986,-29987,-29987,-29987,-29987,-29988,-29988,-29989,-29990,-29991]} 1. d4 {[%emt 0:00:03]} Nf6 {[%emt 0:00:03]} 2. c4 {[%emt 0:00:01]} e6 {[%emt 0:00:01]} 3. Nc3 {[%emt 0:00:02]} Bb4 {[%emt 0:00:01]} 4. e3 {[%emt 0:00:01]} O-O {[%emt 0:00:03]} 5. Bd3 {[%emt 0:00:01]} d5 {[%emt 0:00:03]} 6. a3 {[%emt 0:00:01]} Bxc3+ {[%emt 0:00:20]} 7. bxc3 {[%emt 0:00:00]} b6 {[%emt 0:00:05]} 8. cxd5 {[%emt 0:00:07] E49: Nimzo-Indian: Rubinstein: 5 Bd3 d5 6 a3 Bxc3+ 7 bxc3.} Qxd5 {[%emt 0:00:05]} 9. f3 {[%emt 0:00:10]} Ba6 {[%emt 0:00:27]} 10. Ne2 {[%emt 0:00:09] The position is equal.} c5 {[%emt 0:00:39]} 11. e4 {[%emt 0:00:20]} Qb7 {[%emt 0:00:11]} 12. Bg5 {[%emt 0:00:13] [#]} Nbd7 $146 {[%emt 0:00:11]} ({Predecessor:} 12... Nfd7 13. O-O Bxd3 14. Qxd3 Qa6 15. Qxa6 Nxa6 16. d5 exd5 17. Rfd1 Nc7 18. Bf4 Ne6 {½-½ Zeng,C (2597)-Peng,H (2375) CHN-chT Div-A 2022 (9.2)}) 13. O-O {[%emt 0:00:32]} cxd4 {[%emt 0:00:02]} 14. cxd4 {[%emt 0:00:03]} ({But not} 14. Nxd4 Rac8 $15) 14... Rfc8 {[%emt 0:00:15]} 15. Qb3 {[%emt 0:00:29]} Rc7 {[%emt 0:00:34]} 16. Rfc1 {[%emt 0:00:31] Hoping for Rxc7.} Rac8 {[%emt 0:00:02]} 17. Rxc7 {[%emt 0:01:30]} Rxc7 {[%emt 0:00:00]} 18. a4 $1 {[%emt 0:00:08]} h6 {[%emt 0:00:40]} 19. Bf4 {[%emt 0:00:11]} Rc8 {[%emt 0:00:22]} 20. Bb5 {[%emt 0:00:02]} Nf8 {[%emt 0:01:49][%cal Bd7f8,Bf8g6,Bg6f4,Bf4e2][%mdl 32]} 21. Be5 {[%emt 0:01:36]} Ng6 {[%emt 0:00:32]} 22. Bxf6 {[%emt 0:00:08] aiming for Be5.} gxf6 {[%emt 0:00:00]} 23. Qd3 {[%emt 0:00:45]} Bxb5 {[%emt 0:00:02]} 24. axb5 {[%emt 0:00:00]} Qd7 {[%emt 0:01:16]} 25. Qb3 $2 {[%emt 0:01:14][%mdl 8192] [#]} (25. Rd1 $14 {keeps the upper hand.}) 25... Nf4 $1 $19 {[%emt 0:00:25][%mdl 576] Deflection} 26. Re1 {[%emt 0:01:16]} (26. Ra2 Nxe2+) 26... Nxe2+ {[%emt 0:00:01]} 27. Rxe2 {[%emt 0:00:00]} Qxd4+ {[%emt 0:00:01][%mdl 4096] Endgame KQR-KQR} 28. Kf1 $2 {[%emt 0:00:01]} (28. Qe3 Qe5 29. Re1) 28... Rc1+ {[%emt 0:00:10]} 29. Re1 {[%emt 0:00:01]} Rxe1+ {[%emt 0:00:06]} 30. Kxe1 {[%emt 0:00:00] KQ-KQ} Qg1+ {[%emt 0:00:01]} 31. Ke2 {[%emt 0:00:11]} Qxg2+ {[%emt 0:00:01]} 32. Ke3 {[%emt 0:00:00]} Qg1+ {[%emt 0:00:04]} 33. Ke2 {[%emt 0:00:01]} Qxh2+ {[%emt 0:00:02]} 34. Ke3 {[%emt 0:00:00]} Qg1+ {[%emt 0:00:02]} 35. Ke2 {[%emt 0:00:01]} h5 {[%emt 0:00:12][%cal Bh6h5,Bh5h4][%mdl 32] ...h4 would be deadly.} 36. Qa4 {[%emt 0:00:02]} h4 {[%emt 0:00:12]} 37. e5 {[%emt 0:00:01]} Qh2+ {[%emt 0:00:08]} (37... Qg2+ $142 38. Ke3 h3 39. Qxa7 h2 40. Qa8+ Kh7 41. Qb7 Kg7 42. Qe4 h1=Q 43. exf6+ Kh6 44. Qf4+ Qg5 45. Qxg5+ Kxg5 46. f4+ Kf5 47. Kd2 Qb1 48. Ke2 Kxf4 49. Kd2 Qb2+ 50. Kd3 e5 51. Kc4 Qa3 52. Kd5 Qc5#) 38. Kf1 {[%emt 0:00:04]} Qxe5 {[%emt 0:00:05]} 39. Qxh4 {[%emt 0:00:04]} Qxb5+ {[%emt 0:00:01]} 40. Kf2 {[%emt 0:00:00]} Qc5+ {[%emt 0:00:01]} 41. Kf1 {[%emt 0:00:01]} Qc1+ {[%emt 0:00:06]} 42. Kf2 {[%emt 0:00:01]} Qd2+ {[%emt 0:00:01]} 43. Kf1 {[%emt 0:00:00]} Qc1+ {[%emt 0:00:09]} 44. Kf2 {[%emt 0:00:02]} Qg5 {[%emt 0:00:01]} 45. Qe4 {[%emt 0:00:02]} Kg7 {[%emt 0:00:06]} 46. Qb7 {[%emt 0:00:01]} Qc5+ {[%emt 0:00:01]} 47. Kf1 {[%emt 0:00:02]} a5 {[%emt 0:00:08][%cal Ba7a5,Ba5a4,Ba4a3,Ba3a2][%mdl 32]} 48. Qe4 {[%emt 0:00:01]} Qf5 {[%emt 0:00:14] ( -> ...Qxe4)} 49. Qe3 {[%emt 0:00:04]} b5 {[%emt 0:00:03] Black mates.} 50. Qg1+ {[%emt 0:00:00]} Qg5 {[%emt 0:00:02]} 51. Qb6 {[%emt 0:00:03]} a4 {[%emt 0:00:02]} 52. Qd4 {[%emt 0:00:01]} a3 {[%emt 0:00:04]} 53. f4 {[%emt 0:00:01]} Qd5 {[%emt 0:00:07]} 54. Qg1+ {[%emt 0:00:01]} Kf8 {[%emt 0:00:01]} 55. Qa7 {[%emt 0:00:02]} a2 {[%emt 0:00:01]} 56. Qa3+ {[%emt 0:00:02] [#]} b4 $1 {[%emt 0:00:10]} 57. Qxb4+ {[%emt 0:00:06]} Kg7 {[%emt 0:00:01]} 58. Qe1 {[%emt 0:00:01]} Qb5+ {[%emt 0:00:05]} 59. Kg2 {[%emt 0:00:01]} Qb2+ {[%emt 0:00:02] Weighted Error Value: White=0.78/Black=0.27 (precise)} 0-1

[Event "CCT Airthings Masters Play-In 2023"]
[Site "Online"]
[Date "2023.02.03"]
[Round "3"]
[White "GasconJR"]
[Black "jcibarra"]
[Result "0-1"]
[ECO "B30"]
[WhiteElo "2405"]
[BlackElo "2584"]
[Annotator "TA"]
[PlyCount "70"]
[EventDate "2023.02.03"]
[EventType "swiss"]
[EventCountry "NET"]
[SourceTitle "playchess.com"]
[Source "ChessBase"]
[SourceQuality "1"]
[TimeControl "600+2"]

{[%evp 9,70,25,24,14,21,2,13,19,15,18,16,0,0,0,0,0,0,0,11,-1,0,0,0,0,18,4,25,0,0,0,-11,-35,0,-20,10,-31,0,-80,-18,-20,-7,-49,-41,-84,-87,-92,-100,-118,-45,-169,-170,-170,-173,-170,-170,-165,-158,-158,-160,-192,-193,-342,-293]} 1. e4 {[%emt 0:00:19]} c5 {[%emt 0:00:05]} 2. Nf3 {[%emt 0:00:06]} Nc6 {[%emt 0:00:02]} 3. Bb5 {[%emt 0:00:03]} e6 {[%emt 0:00:02]} 4. b3 {[%emt 0:00:09]} Nd4 {[%emt 0:00:08]} 5. Bd3 {[%emt 0:00:09]} Ne7 {[%emt 0:00:12]} 6. Nxd4 {[%emt 0:00:36] B30: Sicilian: 2...Nc6 3 Bb5, lines without ...g6.} cxd4 {[%emt 0:00:03]} 7. c3 {[%emt 0:00:10] [#]} Nc6 $146 {[%emt 0:00:05]} ({Predecessor:} 7... g6 8. cxd4 Bg7 9. Bb2 Nc6 10. e5 d6 11. Bb5 Bd7 12. Qe2 O-O 13. O-O dxe5 14. dxe5 {0-1 Petrov,M (2487)-Wells,P (2448) South Wales op 12th 2015 (10)}) 8. Bb2 {[%emt 0:00:10] The position is equal.} Bc5 {[%emt 0:00:23]} 9. O-O {[%emt 0:00:15]} O-O {[%emt 0:00:06]} 10. b4 {[%emt 0:00:24]} Bb6 {[%emt 0:00:16]} 11. Na3 {[%emt 0:01:09]} d5 {[%emt 0:00:27]} 12. Qe2 {[%emt 0:00:42]} dxc3 {[%emt 0:00:42]} 13. dxc3 {[%emt 0:00:03]} Qh4 {[%emt 0:00:07]} 14. Nb5 {[%emt 0:01:55]} Rd8 {[%emt 0:00:34]} 15. a4 {[%emt 0:00:11] [#] Hoping for a5.} a5 $1 {[%emt 0:00:16]} 16. bxa5 {[%emt 0:00:33]} Rxa5 {[%emt 0:00:00]} 17. c4 {[%emt 0:00:29]} d4 {[%emt 0:00:47]} 18. e5 {[%emt 0:00:18]} Bc5 {[%emt 0:00:01]} 19. f4 {[%emt 0:00:09]} Nb4 {[%emt 0:00:27]} 20. Rf3 {[%emt 0:00:21]} Nxd3 {[%emt 0:00:05]} 21. Qxd3 {[%emt 0:00:00] [#] aiming for Rh3.} Qg4 {[%emt 0:00:12]} 22. Kh1 {[%emt 0:00:03][%cal Rb2d4]} Bd7 {[%emt 0:00:07]} (22... b6 $5 {[%cal Rc8b7]}) 23. h3 {[%emt 0:00:37]} (23. Qd2 $11 b6 24. Rg3) 23... Qg6 {[%emt 0:00:13]} (23... Qh4 $17) 24. Qxg6 $1 $11 {[%emt 0:00:04]} hxg6 {[%emt 0:00:00]} 25. Rd3 {[%emt 0:00:03]} Bc6 {[%emt 0:00:13]} 26. Nxd4 {[%emt 0:00:40]} Rxa4 {[%emt 0:00:02]} 27. Rxa4 {[%emt 0:00:12]} Bxa4 {[%emt 0:00:03] This pair of bishops is nice.} 28. Rd2 {[%emt 0:00:05]} Bc6 {[%emt 0:00:25]} ({Black should play} 28... Bb4 $17 29. Rd3 Be7) 29. Nf3 {[%emt 0:00:07] This costs White the game.} (29. Bc3 $15) 29... Rxd2 $19 {[%emt 0:00:04]} 30. Nxd2 {[%emt 0:00:02][%mdl 4096] Endgame KBB-KBN} Be3 {[%emt 0:00:00][%csl LRd2,LRf4]} 31. Nb3 {[%emt 0:00:35]} Bxf4 {[%emt 0:00:05]} 32. Kg1 {[%emt 0:00:01]} Bg3 {[%emt 0:00:17]} 33. Bc3 {[%emt 0:00:21]} Kh7 {[%emt 0:00:08] Black is more active.} 34. Bb2 {[%emt 0:00:02]} g5 {[%emt 0:00:02]} 35. Na5 {[%emt 0:00:06]} (35. Nd4 $142) 35... Be4 {[%emt 0:00:06] Weighted Error Value: White=0.27 (precise) /Black=0.12 (very precise)} 0-1